fUST/lending_fUST_20250821
["ID","MTS","AMOUNT","RATE_DAILY","PERIOD"]
[380421623,1755754253738,-480.0,0.00022191,3]
[380421624,1755754253751,-480.0,0.00022191,3]
[380421625,1755754253765,-480.0,0.00022191,3]
[380421626,1755754253777,-480.0,0.00022191,3]
[380421627,1755754253789,-480.0,0.00022191,3]
[380421628,1755754253802,-480.0,0.00022191,3]
[380421629,1755754253814,-1271.43,0.00022191,3]
[380421630,1755754253825,-480.0,0.00022191,2]
[380421631,1755754253839,-480.0,0.00022191,3]
[380421632,1755754253853,-459.78234037,0.00022191,3]
[380421633,1755754253866,-480.0,0.00022191,3]
[380421634,1755754253876,-480.0,0.00022191,3]
[380421635,1755754253887,-151.0,0.00022191,7]
[380421636,1755754253899,-480.0,0.00022191,3]
[380421637,1755754253910,-953.71,0.00022191,3]
[380421638,1755754253922,-431.624144,0.00022191,7]
[380421639,1755754253934,-480.0,0.00022191,3]
[380421640,1755754253947,-382.63109332,0.00022191,3]
[380421641,1755754253959,-431.624144,0.00022191,7]
[380421642,1755754253973,-480.0,0.00022191,3]
[380421643,1755754253987,-480.0,0.00022191,3]
[380421644,1755754254000,-480.0,0.00022191,3]
[380421645,1755754254010,-431.624144,0.00022191,7]
[380421646,1755754254020,-480.0,0.00022191,3]
[380421647,1755754254031,-480.0,0.00022191,3]
[380421648,1755754254042,-744.37,0.00022191,3]
[380421649,1755754254056,-431.624154,0.00022191,7]
[380421650,1755754254070,-480.0,0.00022191,3]
[380421651,1755754254082,-804.16,0.00022191,3]
[380421652,1755754254092,-480.0,0.00022191,3]
[380421653,1755754254103,-679.18,0.00022191,3]
[380421654,1755754254116,-480.0,0.00022191,3]
[380421655,1755754254129,-480.0,0.00022191,3]
[380421656,1755754254140,-1527.23,0.00022191,3]
[380421657,1755754254151,-4414.36,0.00022191,3]
[380421658,1755754254161,-480.0,0.00022191,3]
[380421659,1755754254173,-480.0,0.00022191,3]
[380421660,1755754254185,-683.54,0.00022191,3]
[380421661,1755754254199,-387.9318639,0.00022191,3]
[380421662,1755754254209,-3572.64,0.00022191,3]
[380421663,1755754254220,-599.89,0.00022191,3]
[380421664,1755754254232,-480.0,0.00022191,3]
[380421665,1755754254243,-2734.25,0.00022191,3]
[380421666,1755754254254,-480.0,0.00022191,3]
[380421667,1755754254265,-2681.75,0.00022191,3]
[380421668,1755754254277,-480.0,0.00022191,3]
[380421669,1755754254288,-480.0,0.00022191,3]
[380421670,1755754254300,-480.0,0.00022191,3]
[380421671,1755754254310,-2023.98,0.00022191,3]
[380421672,1755754254322,-1788.7,0.00022191,3]
[380421673,1755754254334,-151.0,0.00022191,7]
[380421674,1755754254347,-480.0,0.00022191,3]
[380421675,1755754254358,-480.0,0.00022191,3]
[380421676,1755754254369,-480.0,0.00022191,3]
[380421677,1755754254381,-1527.15,0.00022191,3]
[380421678,1755754254393,-480.0,0.00022191,3]
[380421679,1755754254406,-662.45,0.00022191,3]
[380421680,1755754254419,-362.64564615,0.00022191,3]
[380421681,1755754254431,-480.0,0.00022191,3]
[380421682,1755754254443,-960.02,0.00022191,3]
[380421683,1755754254455,-844.49,0.00022191,3]
[380421684,1755754254466,-480.0,0.00022191,3]
[380421685,1755754254478,-1789.34,0.00022191,3]
[380421686,1755754254489,-749.29,0.00022191,3]
[380421687,1755754254500,-1494.35,0.00022191,3]
[380421688,1755754254512,-1473.74,0.00022191,3]
[380421689,1755754254524,-480.0,0.00022191,3]
[380421690,1755754254535,-584.83,0.00022191,3]
[380421691,1755754254546,-480.0,0.00022191,3]
[380421692,1755754254558,-151.0,0.00022191,7]
[380421693,1755754254569,-151.0,0.00022191,7]
[380421694,1755754254581,-480.0,0.00022191,3]
[380421695,1755754254592,-480.0,0.00022191,3]
[380421696,1755754254603,-541.96,0.00022191,3]
[380421697,1755754254615,-163.348528,0.00022191,7]
[380421698,1755754254626,-480.0,0.00022191,3]
[380421699,1755754254638,-480.0,0.00022191,3]
[380421700,1755754254649,-163.348528,0.00022191,7]
[380421701,1755754254661,-1214.94,0.00022191,3]
[380421702,1755754254674,-163.348528,0.00022191,7]
[380421703,1755754254685,-717.7,0.00022191,3]
[380421704,1755754254696,-163.348524,0.00022191,7]
[380421705,1755754254707,-480.0,0.00022191,3]
[380421706,1755754254719,-480.0,0.00022191,3]
[380421707,1755754254730,-151.0,0.00022191,7]
[380421708,1755754254740,-480.0,0.00022191,3]
[380421709,1755754254754,-480.0,0.00022191,3]
[380421710,1755754254765,-1726.61,0.00022191,3]
[380421711,1755754254776,-293.46558718,0.00022191,3]
[380421712,1755754254787,-480.0,0.00022191,3]
[380421713,1755754254798,-428.03659096,0.00022191,3]
[380421714,1755754254809,-533.67,0.00022191,3]
[380421715,1755754254820,-329.054178,0.00022191,7]
[380421716,1755754254831,-480.0,0.00022191,3]
[380421717,1755754254843,-480.0,0.00022191,3]
[380421718,1755754254855,-329.054178,0.00022191,7]
[380421719,1755754254867,-221.12959084,0.00022191,3]
[380421720,1755754254878,-329.054178,0.00022191,7]
[380421721,1755754254890,-480.0,0.00022191,3]
[380421722,1755754254902,-481.00081726,0.00022191,3]
[380421723,1755754254913,-480.0,0.00022191,3]
[380421724,1755754254924,-480.0,0.00022191,3]
[380421725,1755754254936,-329.054182,0.00022191,7]
[380421726,1755754254948,-480.0,0.00022191,3]
[380421727,1755754254959,-381.81812189,0.00022191,3]
[380421728,1755754254970,-480.0,0.00022191,3]
[380421729,1755754254982,-656.29,0.00022191,3]
[380421730,1755754254993,-480.0,0.00022191,3]
[380421731,1755754255004,-480.0,0.00022191,3]
[380421732,1755754255015,-151.0,0.00022191,7]
[380421733,1755754255027,-151.0,0.00022191,7]
[380421734,1755754255038,-480.0,0.00022191,3]
[380421735,1755754255049,-480.0,0.00022191,3]
[380421736,1755754255060,-487.73,0.00022191,3]
[380421737,1755754255072,-4758.92,0.00022191,3]
[380421738,1755754255082,-480.0,0.00022191,3]
[380421739,1755754255092,-480.0,0.00022191,3]
[380421740,1755754255101,-2630.72,0.00022191,3]
[380421741,1755754255111,-2820.84,0.00022191,3]
[380421742,1755754255121,-1182.61,0.00022191,3]
[380421743,1755754255130,-467.10223512,0.00022191,3]
[380421744,1755754255140,-480.0,0.00022191,3]
[380421745,1755754255149,-480.0,0.00022191,3]
[380421746,1755754255158,-2331.92,0.00022191,3]
[380421747,1755754255168,-6369.9,0.00022191,3]
[380421748,1755754255177,-480.0,0.00022191,3]
[380421749,1755754255186,-480.0,0.00022191,2]
[380421750,1755754255195,-580.95,0.00022191,3]
[380421751,1755754255205,-480.0,0.00022191,3]
[380421752,1755754255214,-526.73,0.00022191,3]
[380421753,1755754255223,-480.0,0.00022191,3]
[380421754,1755754255233,-480.0,0.00022191,3]
[380421755,1755754255243,-480.0,0.00022191,3]
[380421756,1755754255252,-916.33,0.00022191,3]
[380421757,1755754255263,-833.39,0.00022191,3]
[380421758,1755754255273,-500.0,0.00022191,3]
[380421759,1755754255284,-480.0,0.00022191,3]
[380421760,1755754255294,-586.82,0.00022191,3]
[380421761,1755754255303,-451.05444162,0.00022191,3]
[380421762,1755754255313,-851.73,0.00022191,3]
[380421763,1755754255322,-480.0,0.00022191,3]
[380421764,1755754255332,-1284.67,0.00022191,3]
[380421765,1755754255341,-480.0,0.00022191,3]
[380421766,1755754255351,-480.0,0.00022191,3]
[380421767,1755754255361,-534.09788202,0.00022191,2]
[380421768,1755754255370,-480.0,0.00022191,3]
[380421769,1755754255379,-907.15,0.00022191,3]
[380421770,1755754255389,-480.0,0.00022191,3]
[380421771,1755754255398,-151.0,0.00022191,7]
[380421772,1755754255408,-480.0,0.00022191,3]
[380421773,1755754255418,-480.0,0.00022191,3]
[380421774,1755754255427,-480.0,0.00022191,3]
[380421775,1755754255436,-153.684528,0.00022191,7]
[380421776,1755754255446,-480.0,0.00022191,3]
[380421777,1755754255456,-496.03,0.00022191,3]
[380421778,1755754255465,-480.0,0.00022191,3]
[380421779,1755754255475,-254.18808236,0.00022191,3]
[380421780,1755754255484,-480.0,0.00022191,3]
[380421781,1755754255494,-480.0,0.00022191,3]
[380421782,1755754255503,-1000.0,0.00022221,2]
[380421783,1755754255512,-1000.0,0.00022221,2]
[380421784,1755754255522,-586.0,0.00022226,2]
[380421785,1755754255532,-247.0,0.00022258,2]
[380421786,1755754255541,-5700.0264201,0.00022263,2]
[380421787,1755754255551,-336.23610955,0.00022317,2]
[380421788,1755754255560,-247.0,0.00022325,2]
[380421789,1755754255569,-1797.0,0.00022365,2]
[380421790,1755754255579,-1622.4737239,0.00022365,2]
[380421791,1755754255892,-534.09788202,0.00022365,2]
[380421792,1755754255913,-247.0,0.00022413,2]
[380421793,1755754255933,-363.1870591,0.00022438,2]
[380421794,1755754255949,-580.787823,0.00022438,2]
[380421795,1755754255958,-293.8392635,0.00022438,2]
[380421796,1755754255967,-200.0,0.00022464,2]
[380421797,1755754255977,-480.0,0.00022465,3]
[380421798,1755754255986,-480.0,0.00022465,3]
[380421799,1755754255996,-407.33645568,0.00022465,3]
[380421800,1755754256006,-636.82,0.00022465,3]
[380421801,1755754256015,-480.0,0.00022465,3]
[380421802,1755754256024,-480.0,0.00022465,3]
[380421803,1755754256033,-480.0,0.00022465,3]
[380421804,1755754256042,-480.0,0.00022465,3]
[380421805,1755754256052,-323.0080006,0.00022465,3]
[380421806,1755754256061,-480.0,0.00022465,3]
[380421807,1755754256071,-480.0,0.00022465,3]
[380421808,1755754256080,-565.27997258,0.00022465,3]
[380421809,1755754256090,-480.0,0.00022465,3]
[380421810,1755754256099,-480.0,0.00022465,3]
[380421811,1755754256108,-480.0,0.00022465,3]
[380421812,1755754256118,-480.0,0.00022465,3]
[380421813,1755754256128,-480.0,0.00022465,3]
[380421814,1755754256137,-480.0,0.00022465,3]
[380421815,1755754256147,-480.0,0.00022465,3]
[380421816,1755754256156,-480.0,0.00022465,3]
[380421817,1755754256166,-480.0,0.00022465,3]
[380421818,1755754256176,-480.0,0.00022465,3]
[380421819,1755754256185,-480.0,0.00022465,3]
[380421820,1755754256195,-480.0,0.00022465,3]
[380421821,1755754256204,-480.0,0.00022465,3]
[380421822,1755754256214,-612.77,0.00022465,3]
[380421823,1755754256223,-480.0,0.00022465,3]
[380421824,1755754256233,-480.0,0.00022465,3]
[380421825,1755754256243,-480.0,0.00022465,3]
[380421826,1755754256252,-480.0,0.00022465,3]
[380421827,1755754256261,-480.0,0.00022465,3]
[380421828,1755754256271,-496.77,0.00022465,3]
[380421829,1755754256281,-1066.96,0.00022465,3]
[380421830,1755754256292,-480.0,0.00022465,3]
[380421831,1755754256301,-480.0,0.00022465,3]
[380421832,1755754256310,-271.97464115,0.00022465,3]
[380421833,1755754256320,-480.0,0.00022465,3]
[380421834,1755754256329,-480.0,0.00022465,3]
[380421835,1755754256338,-480.0,0.00022465,3]
[380421836,1755754256348,-480.0,0.00022465,3]
[380421837,1755754256357,-480.0,0.00022465,3]
[380421838,1755754256366,-480.0,0.00022465,3]
[380421839,1755754256376,-480.0,0.00022465,3]
[380421840,1755754256385,-596.2,0.00022465,3]
[380421841,1755754256395,-480.0,0.00022465,3]
[380421842,1755754256404,-664.82,0.00022465,3]
[380421843,1755754256414,-480.0,0.00022465,3]
[380421844,1755754256424,-480.0,0.00022465,3]
[380421845,1755754256433,-480.0,0.00022465,3]
[380421846,1755754256442,-480.0,0.00022465,3]
[380421847,1755754256452,-480.0,0.00022465,3]
[380421848,1755754256461,-480.0,0.00022465,3]
[380421849,1755754256471,-360.13231669,0.00022465,3]
[380421850,1755754256480,-480.0,0.00022465,3]
[380421851,1755754256489,-480.0,0.00022465,3]
[380421852,1755754256498,-823.92624695,0.00022465,3]
[380421853,1755754256507,-480.0,0.00022465,3]
[380421854,1755754256517,-558.42,0.00022465,3]
[380421855,1755754256526,-480.0,0.00022465,3]
[380421856,1755754256535,-480.0,0.00022465,3]
[380421857,1755754256544,-480.0,0.00022465,3]
[380421858,1755754256554,-352.03973484,0.00022465,3]
[380421859,1755754256564,-480.0,0.00022465,3]
[380421860,1755754256573,-319.82572936,0.00022465,3]
[380421861,1755754256582,-480.0,0.00022465,3]
[380421862,1755754256591,-480.0,0.00022465,3]
[380421863,1755754256600,-480.0,0.00022465,3]
[380421864,1755754256610,-725.9,0.00022465,3]
[380421865,1755754256619,-538.59,0.00022465,3]
[380421866,1755754256628,-480.0,0.00022465,3]
[380421867,1755754256638,-1217.56,0.00022465,3]
[380421868,1755754256647,-480.0,0.00022465,3]
[380421869,1755754256657,-480.0,0.00022465,3]
[380421870,1755754256668,-480.0,0.00022465,3]
[380421871,1755754256679,-480.0,0.00022465,3]
[380421872,1755754256689,-480.0,0.00022465,3]
[380421873,1755754256698,-342.89236103,0.00022465,3]
[380421874,1755754256707,-480.0,0.00022465,3]
[380421875,1755754256718,-549.80398396,0.00022465,3]
[380421876,1755754256727,-480.0,0.00022465,3]
[380421877,1755754256737,-480.0,0.00022465,3]
[380421878,1755754256746,-480.0,0.00022465,3]
[380421879,1755754256757,-480.0,0.00022465,3]
[380421880,1755754256768,-480.0,0.00022465,2]
[380421881,1755754256778,-480.0,0.00022465,3]
[380421882,1755754256787,-327.50457658,0.00022465,3]
[380421883,1755754256796,-480.0,0.00022465,3]
[380421884,1755754256805,-480.0,0.00022465,3]
[380421885,1755754256815,-480.0,0.00022465,3]
[380421886,1755754256824,-480.0,0.00022465,3]
[380421887,1755754256833,-480.0,0.00022465,3]
[380421888,1755754256843,-480.0,0.00022465,3]
[380421889,1755754256852,-551.39587215,0.00022465,3]
[380421890,1755754256862,-1459.99,0.00022465,3]
[380421891,1755754256872,-480.0,0.00022465,3]
[380421892,1755754256881,-704.54,0.00022465,3]
[380421893,1755754256892,-343.43951155,0.00022465,3]
[380421894,1755754256901,-480.0,0.00022465,3]
[380421895,1755754256911,-865.97,0.00022465,3]
[380421896,1755754256921,-480.0,0.00022465,3]
[380421897,1755754256931,-480.0,0.00022465,3]
[380421898,1755754256941,-480.0,0.00022465,3]
[380421899,1755754256950,-480.0,0.00022465,3]
[380421900,1755754256960,-480.0,0.00022465,3]
[380421901,1755754256970,-480.0,0.00022465,3]
[380421902,1755754256979,-480.0,0.00022465,3]
[380421903,1755754256988,-480.0,0.00022465,3]
[380421904,1755754256998,-487.96543727,0.00022465,3]
[380421905,1755754257008,-480.0,0.00022465,3]
[380421906,1755754257017,-480.0,0.00022465,3]
[380421907,1755754257027,-480.0,0.00022465,3]
[380421908,1755754257036,-480.0,0.00022465,3]
[380421909,1755754257046,-455.56265588,0.00022465,3]
[380421910,1755754257065,-205.29734412,0.00022465,3]
[380421911,1755754257075,-480.0,0.00022465,3]
[380421912,1755754257084,-480.0,0.00022465,3]
[380421913,1755754257093,-480.0,0.00022465,3]
[380421914,1755754257103,-480.0,0.00022465,3]
[380421915,1755754257113,-480.0,0.00022465,3]
[380421916,1755754257123,-480.0,0.00022465,3]
[380421917,1755754257133,-480.0,0.00022465,3]
[380421918,1755754257144,-483.53420393,0.00022465,3]
[380421919,1755754257153,-2097.37,0.00022465,3]
[380421920,1755754257163,-480.0,0.00022465,3]
[380421921,1755754257174,-480.0,0.00022465,3]
[380421922,1755754257183,-480.0,0.00022465,3]
[380421923,1755754257193,-480.0,0.00022465,3]
[380421924,1755754257202,-480.0,0.00022465,3]
[380421925,1755754257212,-480.0,0.00022465,3]
[380421926,1755754257221,-480.0,0.00022465,3]
[380421927,1755754257230,-480.0,0.00022465,3]
[380421928,1755754257240,-480.0,0.00022465,3]
[380421929,1755754257250,-822.44,0.00022465,3]
[380421930,1755754257259,-480.0,0.00022465,3]
[380421931,1755754257268,-595.49,0.00022465,3]
[380421932,1755754257277,-480.0,0.00022465,3]
[380421933,1755754257287,-652.62,0.00022465,3]
[380421934,1755754257297,-1018.28,0.00022465,3]
[380421935,1755754257306,-756.77,0.00022465,3]
[380421936,1755754257315,-1132.03,0.00022465,3]
[380421937,1755754257324,-480.0,0.00022465,3]
[380421938,1755754257334,-480.0,0.00022465,3]
[380421939,1755754257343,-480.0,0.00022465,3]
[380421940,1755754257352,-480.0,0.00022465,3]
[380421941,1755754257362,-2056.29,0.00022465,3]
[380421942,1755754257371,-651.6,0.00022465,3]
[380421943,1755754257380,-480.0,0.00022465,3]
[380421944,1755754257390,-480.0,0.00022465,3]
[380421945,1755754257399,-583.45,0.00022465,3]
[380421946,1755754257408,-480.0,0.00022465,3]
[380421947,1755754257417,-480.0,0.00022465,3]
[380421948,1755754257426,-480.0,0.00022465,3]
[380421949,1755754257435,-236.40842756,0.00022465,3]
[380421950,1755754257445,-480.0,0.00022465,3]
[380421951,1755754257453,-480.0,0.00022465,3]
[380421952,1755754257463,-480.0,0.00022465,3]
[380421953,1755754257472,-480.0,0.00022465,3]
[380421954,1755754257481,-480.0,0.00022465,3]
[380421955,1755754257490,-778.42,0.00022465,3]
[380421956,1755754257500,-480.0,0.00022465,3]
[380421957,1755754257509,-480.0,0.00022465,3]
[380421958,1755754257518,-480.0,0.00022465,3]
[380421959,1755754257528,-443.95744461,0.00022465,3]
[380421960,1755754257537,-480.0,0.00022465,3]
[380421961,1755754257547,-480.0,0.00022465,3]
[380421962,1755754257556,-480.0,0.00022465,3]
[380421963,1755754257565,-480.0,0.00022465,3]
[380421964,1755754257575,-881.57,0.00022465,3]
[380421965,1755754257584,-533.32828532,0.00022465,3]
[380421966,1755754257593,-1285.32,0.00022465,3]
[380421967,1755754257602,-1099.21,0.00022465,3]
[380421968,1755754257612,-480.0,0.00022465,3]
[380421969,1755754257621,-881.23,0.00022465,3]
[380421970,1755754257631,-942.09,0.00022465,3]
[380421971,1755754257640,-480.0,0.00022465,3]
[380421972,1755754257649,-480.0,0.00022465,3]
[380421973,1755754257658,-807.83,0.00022465,3]
[380421974,1755754257671,-480.0,0.00022465,3]
[380421975,1755754257683,-480.0,0.00022465,3]
[380421976,1755754257692,-480.0,0.00022465,3]
[380421977,1755754257701,-480.0,0.00022465,3]
[380421978,1755754257711,-480.0,0.00022465,3]
[380421979,1755754257721,-254.18910015,0.00022465,3]
[380421980,1755754257730,-480.0,0.00022465,3]
[380421981,1755754257740,-480.0,0.00022465,3]
[380421982,1755754257749,-555.61,0.00022465,3]
[380421983,1755754257758,-480.0,0.00022465,3]
[380421984,1755754257768,-480.0,0.00022465,3]
[380421985,1755754257778,-480.0,0.00022465,3]
[380421986,1755754257788,-480.0,0.00022465,3]
[380421987,1755754257797,-480.0,0.00022465,3]
[380421988,1755754257806,-480.0,0.00022465,3]
[380421989,1755754257815,-480.0,0.00022465,3]
[380421990,1755754257825,-480.0,0.00022465,3]
[380421991,1755754257835,-480.0,0.00022465,3]
[380421992,1755754257845,-480.0,0.00022465,3]
[380421993,1755754257855,-480.0,0.00022465,3]
[380421994,1755754257864,-480.0,0.00022465,3]
[380421995,1755754257873,-480.0,0.00022465,3]
[380421996,1755754257883,-525.41362766,0.00022465,3]
[380421997,1755754257892,-480.0,0.00022465,3]
[380421998,1755754257902,-480.0,0.00022465,3]
[380421999,1755754257912,-480.0,0.00022465,3]
[380422000,1755754257921,-480.0,0.00022465,3]
[380422001,1755754257931,-480.0,0.00022465,3]
[380422002,1755754257940,-480.0,0.00022465,3]
[380422003,1755754257948,-437.94841319,0.00022465,3]
[380422004,1755754257958,-611.81,0.00022465,3]
[380422005,1755754257967,-460.0,0.00022465,3]
[380422006,1755754257976,-480.0,0.00022465,3]
[380422007,1755754257986,-480.0,0.00022465,3]
[380422008,1755754257995,-2089.96,0.00022465,3]
[380422009,1755754258004,-2549.7,0.00022465,3]
[380422010,1755754258013,-480.0,0.00022465,3]
[380422011,1755754258022,-480.0,0.00022465,3]
[380422012,1755754258031,-1105.29,0.00022465,3]
[380422013,1755754258040,-480.0,0.00022465,3]
[380422014,1755754258049,-480.0,0.00022465,3]
[380422015,1755754258059,-480.0,0.00022465,3]
[380422016,1755754258069,-480.0,0.00022465,3]
[380422017,1755754258078,-547.98,0.00022465,3]
[380422018,1755754258088,-480.0,0.00022465,3]
[380422019,1755754258098,-413.16469125,0.00022465,3]
[380422020,1755754258108,-465.61715794,0.00022465,3]
[380422021,1755754258117,-480.0,0.00022465,3]
[380422022,1755754258127,-480.0,0.00022465,3]
[380422023,1755754258136,-480.0,0.00022465,3]
[380422024,1755754258145,-480.0,0.00022465,3]
[380422025,1755754258155,-1500.0,0.00022465,28]
[380422026,1755754258165,-1500.0,0.00022465,28]
[380422027,1755754258175,-1500.0,0.00022465,28]
[380422028,1755754258184,-1500.0,0.00022465,28]
[380422029,1755754258194,-1500.0,0.00022465,28]
[380422030,1755754258203,-1500.0,0.00022465,28]
[380422031,1755754258212,-1500.0,0.00022465,28]
[380422032,1755754258221,-480.0,0.00022465,3]
[380422033,1755754258232,-1500.0,0.00022465,28]
[380422034,1755754258241,-1500.0,0.00022465,28]
[380422035,1755754258250,-480.0,0.00022465,3]
[380422036,1755754258260,-608.29,0.00022465,3]
[380422037,1755754258270,-1500.0,0.00022465,28]
[380422038,1755754258279,-1500.0,0.00022465,28]
[380422039,1755754258289,-952.87,0.00022465,3]
[380422040,1755754258298,-1500.0,0.00022465,28]
[380422041,1755754258308,-1500.0,0.00022465,28]
[380422042,1755754258318,-1500.0,0.00022465,28]
[380422043,1755754258328,-1500.0,0.00022465,28]
[380422044,1755754258338,-1500.0,0.00022465,28]
[380422045,1755754258347,-1500.0,0.00022465,28]
[380422046,1755754258357,-480.0,0.00022465,3]
[380422047,1755754258367,-480.0,0.00022465,3]
[380422048,1755754258376,-1500.0,0.00022465,28]
[380422049,1755754258387,-1500.0,0.00022465,28]
[380422050,1755754258397,-480.0,0.00022465,3]
[380422051,1755754258407,-914.277049,0.00022465,28]
[380422052,1755754258418,-480.0,0.00022465,3]
[380422053,1755754258427,-509.61761706,0.00022465,3]
[380422054,1755754258437,-480.0,0.00022465,3]
[380422055,1755754258446,-480.0,0.00022465,3]
[380422056,1755754258455,-480.0,0.00022465,3]
[380422057,1755754258465,-619.92,0.00022465,3]
[380422058,1755754258474,-480.0,0.00022465,3]
[380422059,1755754258484,-512.8,0.00022465,3]
[380422060,1755754258494,-480.0,0.00022465,3]
[380422061,1755754258503,-480.0,0.00022465,3]
[380422062,1755754258513,-480.0,0.00022465,3]
[380422063,1755754258522,-678.99,0.00022465,3]
[380422064,1755754258534,-480.0,0.00022465,3]
[380422065,1755754258543,-480.0,0.00022465,3]
[380422066,1755754258552,-2960.55,0.00022465,3]
[380422067,1755754258562,-530.59,0.00022465,3]
[380422068,1755754258571,-480.0,0.00022465,3]
[380422069,1755754258581,-847.39,0.00022465,3]
[380422070,1755754258590,-4922.0,0.00022465,3]
[380422071,1755754258599,-480.0,0.00022465,3]
[380422072,1755754258609,-3615.86095507,0.00022465,3]
[380422073,1755754258624,-612.43904493,0.00022465,3]
[380422074,1755754258634,-480.0,0.00022465,3]
[380422075,1755754258645,-480.0,0.00022465,3]
[380422076,1755754258664,-480.0,0.00022465,3]
[380422077,1755754258678,-480.0,0.00022465,3]
[380422078,1755754258687,-237.69159769,0.00022465,3]
[380422079,1755754258697,-73.66935738,0.00022465,3]
[380422080,1755754259035,-192.88,0.00021684,10]
[380422081,1755754259045,-316.61004605,0.00022465,3]
[380422082,1755754259057,-1083.99059657,0.00022465,3]
[380422083,1755754259067,-479.65832341,0.00022465,3]
[380422084,1755754259078,-0.34167659,0.00022465,3]
[380422085,1755754259237,-387.34439061,0.00022465,3]
[380422086,1755754259247,-480.0,0.00022465,3]
[380422087,1755754259257,-407.3859397,0.00022465,3]
[380422088,1755754259267,-480.0,0.00022465,3]
[380422089,1755754259276,-480.0,0.00022465,3]
[380422090,1755754259285,-480.0,0.00022465,3]
[380422091,1755754259295,-480.0,0.00022465,3]
[380422092,1755754259304,-1239.66,0.00022465,3]
[380422093,1755754259314,-480.0,0.00022465,3]
[380422094,1755754259323,-314.5086731,0.00022465,3]
[380422095,1755754259334,-1152.95302011,0.00022465,3]
[380422096,1755754293373,300.0,0.00026,120]
[380422097,1755754384796,300.0,0.00026,120]
[380422098,1755754415666,1248.73026761,0.00027397,120]
[380422099,1755754421285,300.0,0.00026,120]
[380422100,1755754444778,162.282529,0.00013699,2]
[380422101,1755754526960,300.0,0.00026,120]
[380422102,1755754561250,300.0,0.00026,120]
[380422103,1755754625361,1155.986,0.00027397,120]
[380422104,1755754625868,300.0,0.00026,120]
[380422110,1755755159219,369.71652554,0.00027,120]
[380422111,1755755201502,300.0,0.00026,120]
[380422112,1755755210152,-260.18011735,0.00019701,2]
[380422113,1755755210174,-1.46674211,0.000199,2]
[380422114,1755755246087,-196.15369234,0.00019601,2]
[380422115,1755755246109,-139.39594664,0.00019701,2]
[380422116,1755755341364,891.80018151,0.00027397,120]
[380422117,1755755360074,-61.24557011,0.00019701,2]
[380422118,1755755360095,-4717.78892019,0.00020496,2]
[380422128,1755755432407,-414.19646411,0.000199,2]
[380422129,1755755432417,-294.08107981,0.00020496,2]
[380422130,1755755432427,-414.19646407,0.00020835,2]
[380422132,1755755432436,-578.02,0.00021,2]
[380422133,1755755432445,-1200.0,0.00021469,2]
[380422134,1755755432455,-1200.0,0.00021508,2]
[380422135,1755755432464,-300.0,0.00021509,2]
[380422136,1755755432473,-300.0,0.00021509,2]
[380422137,1755755432483,-205.0,0.00021509,2]